Cogmind - Beta 14 @@@ ROGUE MODE // 2024.10.10 @ 21:23:26 Player: KURIIRI Result: Self-destructed Performance ------------- Evolutions (2) 1000 Regions Visited (5) 1000 Robots Destroyed (15) 75 Value Destroyed (283) 283 Prototype IDs (3) 60 Alien Tech Used (0) 0 Bonus (0) 0 TOTAL SCORE: 2418 Bonus ------- None Cogmind --------- Core Integrity 538/550 Matter 235/300 Energy 129/160 System Corruption 0% Temperature Warm (151) Movement Flying (117) Ox1 Location -8/Materials Parts ------- > --- POWER (1) -------- Light Nuclear Core > --- PROPULSION (4) --- Flight Unit Flight Unit > --- UTILITY (4) ------ Hacking Suite Hacking Suite > --- WEAPON (2) ------- Arc Projector > --- INVENTORY (5) ---- Light Fission Core Advanced Beam Rifle Shotgun Shotgun Grenade Launcher Peak State ------------ > --- POWER ------------ Light Nuclear Core > --- PROPULSION ------- Flight Unit Flight Unit Flight Unit Flight Unit > --- UTILITY ---------- Hacking Suite Hacking Suite > --- WEAPON ----------- Arc Projector Arc Projector > --- INVENTORY -------- Light Fission Core Medium Laser Shotgun Shotgun Grenade Launcher [Rating: 22] Favorites ----------- Power Light Nuclear Core Power Core Light Nuclear Core Propulsion Flight Unit Flight Unit Flight Unit Utility Hacking Suite Processor Visual Processing Unit Hackware Hacking Suite Protection Light Armor Plating Weapon Assault Rifle Energy Gun Medium Laser Ballistic Gun Assault Rifle Build | -11 -10 -10 -10 -9 -8 ------- Run | Yrd Mat Min Exi Min Mat Slots Evolved 4 | . . . . . 4 Power . | . . . . . . Propulsion 2 | . . . . . 2 Utility 2 | . . . . . 2 Weapon . | . . . . . . Parts Attached 17 | 2 7 . . . 8 Power 1 | . . . . . 1 Engine . | . . . . . . Core 1 | . . . . . 1 Reactor . | . . . . . . Propulsion 4 | . 2 . . . 2 Treads . | . . . . . . Leg . | . . . . . . Wheel . | . . . . . . Hover . | . . . . . . Flight 4 | . 2 . . . 2 Utility 5 | . 4 . . . 1 Device . | . . . . . . Storage . | . . . . . . Processor 2 | . 2 . . . . Hackware 2 | . 1 . . . 1 Protection 1 | . 1 . . . . Artifact . | . . . . . . Weapon 7 | 2 1 . . . 4 Energy Gun 5 | . 1 . . . 4 Energy Cannon . | . . . . . . Ballistic Gun 2 | 2 . . . . . Ballistic Cannon . | . . . . . . Launcher . | . . . . . . Special Weapon . | . . . . . . Impact Weapon . | . . . . . . Slashing Weapon . | . . . . . . Piercing Weapon . | . . . . . . Special Melee Weapon . | . . . . . . Unidentified Prototypes 1 | . . . . . 1 Parts Lost 5 | . . . . 2 3 Power . | . . . . . . Propulsion 2 | . . . . . 2 Utility 1 | . . . . 1 . Weapon 2 | . . . . 1 1 Highest Loss Streak 3 | . . . . 2 3 To Critical Strikes . | . . . . . . Average Slot Usage (%) 64 | . 54 85 85 62 71 Flight 18 | . 6 28 28 28 34 Processor 7 | . 15 . . . . Hackware 8 | . 1 14 14 14 17 Protection 5 | . 3 14 14 1 . Energy Gun 8 | . 2 14 14 14 13 Ballistic Gun 15 | . 25 14 14 3 . Peak Build Rating 22 | 2 8 8 9 9 22 Average Rating 7 | 1 4 8 8 7 18 On Entrance 5 | . 2 8 8 9 7 Naked Turns . | . . . . . . Heaviest Build 13 | 3 7 7 7 7 13 Greatest Support 16 | 3 8 8 8 8 16 Greatest Overweight (x) 2 | . . . . 2 . Average Overweight (x) . | . . . . . . Largest Inventory Capacity 5 | 5 5 5 5 5 5 Average Capacity 5 | 5 5 5 5 5 5 Most Carried 5 | . 5 5 5 5 5 Average Carried 4 | . 3 5 4 5 4 Final Capacity 5 | 5 5 5 5 5 5 Final Carried 5 | . 5 5 5 5 5 Class Distribution -------------------- 92% | Mutant 5% | Scavenger-Sprinter Dominant Class ---------------- Mutant | -10/Materials Mutant | -10/Mines Mutant | -10/Exiles Mutant | -9/Mines Scavenger-Sprinter | -8/Materials Resources | -11 -10 -10 -10 -9 -8 ----------- Run | Yrd Mat Min Exi Min Mat Matter Collected 398 | 220 157 21 . . . Remotely . | . . . . . . Salvage Created 454 | . 331 63 . . 60 Parts 38 | . 31 5 . . 2 Haulers Intercepted 1 | . 1 . . . . Recyclers Shooed . | . . . . . . Parts Field Recycled . | . . . . . . Retrieved Matter . | . . . . . . Parts Self-Destructed . | . . . . . . Prevented . | . . . . . . Kills | -11 -10 -10 -10 -9 -8 ------- Run | Yrd Mat Min Exi Min Mat Combat Hostiles Destroyed 10 | . 6 3 . . 1 Guns 10 | . 6 3 . . 1 Classes Destroyed 6 | . 5 . . . 1 Hauler 1 | . 1 . . . . Operator 2 | . 2 . . . . Watcher 2 | . 2 . . . . Swarmer 6 | . 3 3 . . . Grunt 3 | . 3 . . . . Hunter 1 | . . . . . 1 Best Kill Streak 5 | . 5 3 . . 1 Combat Bots Only 5 | . 5 3 . . 1 Max Kills in Single Turn 2 | . 2 1 . . 1 Gunslinging 1 | . 1 . . . . Exploded . | . . . . . . Melee . | . . . . . . Uniques/NPCs Destroyed . | . . . . . . Combat | -11 -10 -10 -10 -9 -8 -------- Run | Yrd Mat Min Exi Min Mat Hostile Shots Fired 70 | . 19 18 . 20 13 Missed 27 | . 5 8 . 9 5 Damage Taken 697 | . 210 84 . 242 161 Core 192 | . 79 16 . 85 12 Absorbed by Shields . | . . . . . . Core Remaining (%) 64 | 100 . . . 28 . Volleys Fired 44 | . 23 7 . . 14 Largest 2 | . 2 2 . . 2 Hottest 110 | . 70 70 . . 110 Shots Fired 76 | . 46 14 . . 16 Gun 76 | . 46 14 . . 16 Cannon . | . . . . . . Launcher . | . . . . . . Special . | . . . . . . Kinetic 48 | . 41 7 . . . Thermal 12 | . 5 7 . . . Explosive . | . . . . . . Electromagnetic 16 | . . . . . 16 Robot Hit Streak 13 | . 13 10 . . 5 Robot Miss Streak 2 | . 2 2 . . 2 Penetration Max . | . . . . . . Secondary Targets 4 | . 3 1 . . . Max Gunslinging Chain 1 | . 1 1 . . . Shots Hit Robots 55 | . 35 9 . . 11 Core Hits 23 | . 17 4 . . 2 Critical Kills . | . . . . . . Critical Parts Destroyed . | . . . . . . Critical Strikes . | . . . . . . Melee Attacks . | . . . . . . Impact . | . . . . . . Slashing . | . . . . . . Piercing . | . . . . . . Sneak Attacks . | . . . . . . Combat Hostiles . | . . . . . . Follow-up Attacks . | . . . . . . Damage Inflicted 683 | . 395 151 . . 137 Guns 683 | . 395 151 . . 137 Cannons . | . . . . . . Explosions . | . . . . . . Melee . | . . . . . . Ramming . | . . . . . . Kinetic 442 | . 344 98 . . . Thermal 104 | . 51 53 . . . Explosive . | . . . . . . Electromagnetic 137 | . . . . . 137 Impact . | . . . . . . Slashing . | . . . . . . Piercing . | . . . . . . Highest Corruption . | . . . . . . Average Corruption . | . . . . . . Corruption Purged . | . . . . . . Corruption Blocked . | . . . . . . Overload Shots . | . . . . . . Overflow Damage . | . . . . . . Projectiles . | . . . . . . Explosions . | . . . . . . Melee . | . . . . . . Knockbacks . | . . . . . . Impact . | . . . . . . Kinetic . | . . . . . . Secondary . | . . . . . . Self-Inflicted Damage . | . . . . . . Shots . | . . . . . . Rammed . | . . . . . . Targets Rammed . | . . . . . . Kicked . | . . . . . . Crushed . | . . . . . . Highest Temperature 151 | . 18 63 . . 151 Average Temperature 42 | . 6 31 . . 74 Received Heat Transfer 182 | . 99 . . 83 . Siege Activations . | . . . . . . Robots Corrupted . | . . . . . . Combat Hostiles . | . . . . . . Parts Fried . | . . . . . . Impact Corruptions . | . . . . . . Robots Melted . | . . . . . . Combat Hostiles . | . . . . . . Parts Melted . | . . . . . . Heat Transferred 296 | . 148 148 . . . Parts Sabotaged . | . . . . . . Parts Stolen . | . . . . . . Parts Stripped . | . . . . . . Power Chain Reactions . | . . . . . . Alert | -11 -10 -10 -10 -9 -8 ------- Run | Yrd Mat Min Exi Min Mat Peak Influence 282 | . 208 106 . 282 124 Initial 109 | . . 31 . . 109 Average 85 | . 68 88 . 119 107 Maximum Alert Level 1 | . 1 . . 1 . Low Security (%) 93 | 100 98 100 . 76 100 Level 1 6 | . 1 . . 23 . Level 2 . | . . . . . . Level 3 . | . . . . . . Level 4 . | . . . . . . Level 5 . | . . . . . . High Security . | . . . . . . Max Security . | . . . . . . Squads Dispatched 4 | . 4 . . . . Investigation 3 | . 3 . . . . Extermination . | . . . . . . Reinforcement 1 | . 1 . . . . Assault . | . . . . . . Garrison . | . . . . . . Intercept . | . . . . . . Searches Triggered . | . . . . . . Construction Impeded . | . . . . . . Haulers Reinforced . | . . . . . . Active Scanning Responses . | . . . . . . Cargo Convoy Interrupts . | . . . . . . Stealth | -11 -10 -10 -10 -9 -8 --------- Run | Yrd Mat Min Exi Min Mat Distress Signals . | . . . . . . Communications Jammed . | . . . . . . Distress Signals . | . . . . . . Times Spotted 40 | . 13 3 . 21 3 Peak Tracking Total 7 | . 5 3 . 7 3 Tactical Retreats 6 | . . . . 6 . Traps | -11 -10 -10 -10 -9 -8 ------- Run | Yrd Mat Min Exi Min Mat Traps Triggered 2 | . 2 . . . . Indirectly . | . . . . . . Trap Hack Attempts . | . . . . . . Triggered . | . . . . . . Disarmed . | . . . . . . Reprogrammed . | . . . . . . Reused . | . . . . . . Traps Extracted . | . . . . . . Installed . | . . . . . . Triggered 2 | . . . . 2 . Machines | -11 -10 -10 -10 -9 -8 ---------- Run | Yrd Mat Min Exi Min Mat Machines Disabled . | . . . . . . Max in Single Turn . | . . . . . . Machines Repaired . | . . . . . . Machines Dismantled . | . . . . . . Machines Sabotaged . | . . . . . . Overloaded Fab Kills . | . . . . . . Hacking | -11 -10 -10 -10 -9 -8 --------- Run | Yrd Mat Min Exi Min Mat Machines Accessed 10 | . 6 . 4 . . Terminals 6 | . 6 . . . . Fabricators . | . . . . . . Repair Stations . | . . . . . . Recycling Units . | . . . . . . Scanalyzers . | . . . . . . Garrison Access . | . . . . . . Total Hacks 29 | . 25 . 4 . . Successful 15 | . 11 . 4 . . Failed 14 | . 14 . . . . Catastrophic 2 | . 2 . . . . Database Lockouts . | . . . . . . Manual 26 | . 25 . 1 . . Terminals 25 | . 25 . . . . Fabricators . | . . . . . . Repair Stations . | . . . . . . Recycling Units . | . . . . . . Scanalyzers . | . . . . . . Garrison Access . | . . . . . . Terminal Hacks 11 | . 7 . 4 . . Record 4 | . . . 4 . . Robot Analysis 4 | . 4 . . . . Prototype ID Bank 1 | . 1 . . . . Terminal Index 1 | . 1 . . . . Recall Investigation 1 | . 1 . . . . Fabricator Hacks . | . . . . . . Repair Station Hacks . | . . . . . . Recycling Unit Hacks . | . . . . . . Scanalyzer . | . . . . . . Garrison Access Hacks . | . . . . . . Unauthorized Hacks 4 | . 4 . . . . Terminals 4 | . 4 . . . . Botnet 3 | . 3 . . . . Operators 1 | . 1 . . . . Fabricators . | . . . . . . Repair Stations . | . . . . . . Recycling Units . | . . . . . . Scanalyzers . | . . . . . . Garrison Access . | . . . . . . Data Cores Recovered . | . . . . . . Used . | . . . . . . Hacking Detections 6 | . 6 . . . . Full Trace Events 5 | . 5 . . . . Feedback Events . | . . . . . . Feedback Blocked . | . . . . . . Robot Schematics Acquired . | . . . . . . Robots Built . | . . . . . . Authchips . | . . . . . . Time . | . . . . . . Total Robot Build Rating . | . . . . . . Part Schematics Acquired . | . . . . . . Parts Built . | . . . . . . Authchips . | . . . . . . Time . | . . . . . . Total Part Build Rating . | . . . . . . Parts Repaired . | . . . . . . Time . | . . . . . . Parts Recycled . | . . . . . . Recycled Matter . | . . . . . . Retrieved Matter . | . . . . . . Retrieved Components . | . . . . . . Parts Scanalyzed . | . . . . . . Part Schematics Acquired . | . . . . . . Parts Damaged . | . . . . . . Bothacking | -11 -10 -10 -10 -9 -8 ------------ Run | Yrd Mat Min Exi Min Mat Used RIF Installer . | . . . . . . Robots Hacked . | . . . . . . Non-combat . | . . . . . . Combat . | . . . . . . Robot Hacks Applied . | . . . . . . Relay Couplers Released . | . . . . . . Fabnet Peak Effective % . | . . . . . . Robots Rewired 1 | . . . . . 1 Allies Hacked . | . . . . . . Hacks Repelled . | . . . . . . Allies | -11 -10 -10 -10 -9 -8 -------- Run | Yrd Mat Min Exi Min Mat Total Allies 3 | . . . . 2 1 Largest Group 2 | . . . . 2 1 Highest-Rated Group 47 | . . . . 47 15 Highest-Rated Ally 31 | . . . . 31 15 Total Orders . | . . . . . . Ally Attacks 9 | . . . . 7 2 Total Damage 116 | . . . . 86 30 Kills 2 | . . . . 2 . Allies Corrupted . | . . . . . . Allies Melted . | . . . . . . Intel | -11 -10 -10 -10 -9 -8 ------- Run | Yrd Mat Min Exi Min Mat Robot Analysis Total 4 | . 4 . . . . Derelict Logs Recovered 3 | . . 2 . 1 . Drone Launches . | . . . . . . Drone Recoveries . | . . . . . . Exploration | -11 -10 -10 -10 -9 -8 ------------- Run | Yrd Mat Min Exi Min Mat Turns Passed 1131 | 15 517 106 150 249 94 Spaces Moved 1785 | 24 539 175 401 563 83 Core 341 | 24 310 . . 7 . Treads . | . . . . . . Legs . | . . . . . . Wheels . | . . . . . . Hover . | . . . . . . Flight 1444 | . 229 175 401 556 83 Fastest Speed 31 | 50 37 37 37 37 31 Average Speed 39 | 50 44 37 37 38 31 Slowest Speed 150 | 50 50 37 37 150 37 Overloaded Moves . | . . . . . . Propulsion Burnouts . | . . . . . . Robots Hopped 9 | . 3 . . 6 . Cave-ins Triggered . | . . . . . . Exploration Rate (%) 47 | 3 68 33 87 86 8 Regions Visited 5 Branch Regions 3 Pre-discovered Areas 1 | . . 1 . . . Known Exits Taken . | . . . . . . Unknown Exits Taken 5 | 1 1 1 1 1 . Scrap Searched 2 | . . 1 . 1 . Spaces Dug . | . . . . . . Terrain Destroyed . | . . . . . . Melee . | . . . . . . Projectile . | . . . . . . AOE . | . . . . . . Terrain Rammed . | . . . . . . Walls Destroyed . | . . . . . . Machines Disabled . | . . . . . . Actions | -11 -10 -10 -10 -9 -8 --------- Run | Yrd Mat Min Exi Min Mat Total 2118 | 25 767 202 402 589 133 Wait 263 | . 193 19 . 32 19 Move 1763 | 23 533 174 400 550 83 Hop 8 | . 2 . . 6 . Pick Up 12 | . 7 1 1 . 3 Fast Attach 11 | 2 5 . . . 4 Attach 3 | . . . . . 3 Detach 1 | . . . . . 1 Swap 3 | . 2 . . . 1 Drop 6 | . 2 1 1 . 2 Fire 44 | . 23 7 . . 14 Melee . | . . . . . . Ram . | . . . . . . Kick . | . . . . . . Crush . | . . . . . . Escape Stasis . | . . . . . . Rewire 4 | . . . . 1 3 Trap . | . . . . . . Miscellaneous . | . . . . . . Route ------- -11/Scrapyard -10/Materials (discovered 3 exits: [*Mat x2] / [*Min]) -10/Mines (discovered 2 exits: [*Mat] / *Exi) -10/Exiles -9/Mines -8/Materials History --------- Turn | Location | Event 2 | -11/Scrapyard | Discovered new exit (range 16) 16 | -11/Scrapyard | Entered Materials 179 | -10/Materials | Discovered new exit (range 12) 199 | -10/Materials | Discovered new exit (range 14) 301 | -10/Materials | Build established: Mutant 447 | -10/Materials | Discovered new exit (range 17) 533 | -10/Materials | Entered Mines 539 | -10/Mines | Met a Derelict bent on vengeance 578 | -10/Mines | Found a damaged Exp. Sensor Array with a note attached 628 | -10/Mines | Learned 2 Materials zone layouts 631 | -10/Mines | Deemed a non-threat by the Exiles lab entrance 631 | -10/Mines | Discovered new exit (range 5) 633 | -10/Mines | Discovered new exit (range 7) 639 | -10/Mines | Entered Exiles 639 | -10/Exiles | Found Exiles lab abandoned 784 | -10/Exiles | Discovered new exit (range 14) 789 | -10/Exiles | Entered Mines 790 | -9/Mines | Assembled infested the area 795 | -9/Mines | Assisted by a Guerilla fighting off Assembled 811 | -9/Mines | Core integrity fell below 50% 867 | -9/Mines | A weapon hastily lodged in a ceiling crevice suddenly fell to the ground 1027 | -9/Mines | Discovered new exit (range 7) 1038 | -9/Mines | Entered Materials 1038 | -8/Materials | Evolved 4 slots: Propulsion x2, Utility x2 1132 | -8/Materials | Self-destructed Last Messages --------------- 01110_ Defender 3a destroyed. 01113_ Penetrated by Slug. 01113_ Flight Unit destroyed. 01116_ Penetrated by Slug. 01119_ Slug penetrates Wall. 01120_ Door malfunctions. 01122_ K-01 Serf collects debris. 01122_ H-55 Commando IFF system glitched. 01122_ Slug penetrates R-06 Scavenger. 01125_ H-55 Commando misfires. 01125_ Slug penetrates Wall. 01126_ K-01 Serf collects debris. 01128_ R-06 Scavenger collects Corrupted Heat Sink. 01130_ Penetrated by Slug. 01130_ Flight Unit destroyed. 01130_ K-01 Serf collects debris. 01130_ H-55 Commando destroyed. 01131_ R-06 Scavenger collects Corrupted Gauss Rifle. Map ----- +----------------------------------------------------+ | ?????????????????????????????????????????????????? | | ?????????????????????????????????????????????????? | | ?????????????????????????????????????????????????? | | ?????????????????????????????????????????????????? | | ?????????????????????????????????????????????????? | | ?????????????????????????????????????????????????? | | ?????????????????????????????????????????????????? | | ?????????????????????????????????????????????????? | | ?????????????????????????????????????????????????? | | ?????????????????????????????????????????????????? | | ?????????????????????????????????????????????????? | | ?????????????????????????????????????????????????? | | ?????????????????????????????????????????????????? | | ?????????????????????????????????????????????????? | | ?????????????????????????????????????????????????? | | ?????????????????????????????????????????????????? | | ?????????????????????????????????????????????????? | | ?????????????????????????????????????????????????? | | ???????????????????????????????#?????????????????? | | ?????????????????????????????? #?????????????????? | | ???????????????????????????? #?????????????????? | | ???????????????????????????? ??#####???????????? | | ??????????????????##########/### #####???????? | | ?????????########## !!! # a ??????? | | ?????????# ## !! # %r ??????? | | ?????????# ## !! #@ ??????? | | ########## ## # !%#### #???????????? | | # [ # ## # =#????????????????????? | | # """ ###+###### #k #????????????????????? | | # """ ![# #??# # #????????????????????? | | # """ # #######+## #????????????????????? | | # + #????????????????????? | | # """ # ########## #????????????????????? | | # """ # #????????# ###????????????????????? | | # """ ! ### ###????????# #??????????????????????? | | # #?# #??#######?# #??????????????????????? | | ############ ####! #?# #??????????????????????? | | ?????????# #?# #??????????????????????? | | ?????????# #?# #??????????????????????? | | ?????????# #?# #??????????????????????? | | ?????????# # #?# #??????????????????????? | | ?????????# #######?# #??????????????????????? | | ?????????# !!!!#???????# #??????????????????????? | | ?????????#[[!!!!#???????? ???????????????????????? | | ?????????########???????? ???????????????????????? | | ????????????????????????? ???????????????????????? | | ????????????????????????? ???????????????????????? | | ????????????????????????? ???????????????????????? | | ????????????????????????? ???????????????????????? | | ?????????????????????????#???????????????????????? | +----------------------------------------------------+ Best States ------------- Heat Dissipation 31 Energy Generation 14 Energy Capacity 160 Matter Stores 300 Matter Capacity 300 Sight Range 18 Terrain Scan Density 10 Armor Coverage 150 Evasion (%) 63 Offensive Hacking 20 Item Schematics ----------------- None Robot Schematics ------------------ None Fabricated ------------ Nothing Alien Tech Used ----------------- None Achievements -------------- None Challenges ------------ None Game ------ Seed CompanionFactoryLance Manual? 0 Play Time 00:19:06 Cumulative 110.9 hours Start 2024.10.09 @ 22:03:58 End 2024.10.10 @ 21:23:26 Sessions 3 Manual Loads 0 Difficulty Rogue Special Mode None Game No. 71 Rogue 35 Adventurer 36 Explorer 0 Win Type - Total 2 Types 2/0/0/0/0/0/0/0/0 Lore% 51 Gallery% 56 Achievement% 51 Wizard Run 0 Options --------- Layout 1 ASCII 0 Keyboard 0 Movement Numpad Keybinds 0 Fullscreen 1 Font 48/Smallcaps Map View 50x35 Zoom Use 0% Tactical HUD 1 Map Filters NONE Filters NONE Steam 1 RUN: c648b385-04d0-4997-9322-d3878fea375b